[Event "Early-Titled-Tuesday-Blitz-January-23-2024"]
[Site "Chess.com"]
[Date "2024.01.23"]
[Round "11"]
[White "Grossboss19"]
[Black "Iball95"]
[Result "1-0"]
[WhiteElo "2595"]
[BlackElo "2753"]
[TimeControl "180+1"]
[EndTime "10:07:02 PST"]
[Termination "Grossboss19 won by resignation"]

1. e4 {[%clk 0:03:00.4]} 1... c5 {[%clk 0:02:58.3]} 2. Nf3 {[%clk 0:02:58.1]}
2... e6 {[%clk 0:02:58.7]} 3. c3 {[%clk 0:02:58.3]} 3... d5 {[%clk 0:02:58.3]}
4. exd5 {[%clk 0:02:58.3]} 4... exd5 {[%clk 0:02:59.2]} 5. d4 {[%clk 0:02:58.5]}
5... Nf6 {[%clk 0:02:59.7]} 6. Bd3 {[%clk 0:02:57.6]} 6... Nc6 {[%clk
0:02:59.5]} 7. O-O {[%clk 0:02:58.2]} 7... Be7 {[%clk 0:02:58.9]} 8. dxc5 {[%clk
0:02:57.5]} 8... Bxc5 {[%clk 0:02:59.5]} 9. Re1+ {[%clk 0:02:57.6]} 9... Be6
{[%clk 0:02:59.6]} 10. Be3 {[%clk 0:02:39.2]} 10... Bxe3 {[%clk 0:02:53.4]} 11.
Rxe3 {[%clk 0:02:38.2]} 11... O-O {[%clk 0:02:54.3]} 12. Bc2 {[%clk 0:02:30.3]}
12... Qb6 {[%clk 0:02:53.4]} 13. b3 {[%clk 0:02:18.9]} 13... Rad8 {[%clk
0:02:44.1]} 14. Nd4 {[%clk 0:02:14.3]} 14... Bg4 {[%clk 0:02:36.4]} 15. f3
{[%clk 0:02:11.8]} 15... Bh5 {[%clk 0:02:33.3]} 16. Qd2 {[%clk 0:02:07.1]} 16...
Rfe8 {[%clk 0:02:33.1]} 17. Na3 {[%clk 0:01:53.6]} 17... Bg6 {[%clk 0:02:27]}
18. Bxg6 {[%clk 0:01:52.5]} 18... hxg6 {[%clk 0:02:27.9]} 19. Nac2 {[%clk
0:01:50.9]} 19... a5 {[%clk 0:02:23]} 20. Rae1 {[%clk 0:01:49.3]} 20... Rxe3
{[%clk 0:02:19.5]} 21. Rxe3 {[%clk 0:01:48.5]} 21... Qc5 {[%clk 0:02:17.2]} 22.
h3 {[%clk 0:01:40.7]} 22... Rc8 {[%clk 0:02:15.5]} 23. Ne2 {[%clk 0:01:31.3]}
23... b5 {[%clk 0:01:56.6]} 24. Ncd4 {[%clk 0:01:29.9]} 24... b4 {[%clk
0:01:48.3]} 25. Nxc6 {[%clk 0:01:28.2]} 25... Rxc6 {[%clk 0:01:47.4]} 26. Kh1
{[%clk 0:01:25.8]} 26... Rc8 {[%clk 0:01:40.5]} 27. g4 {[%clk 0:01:04.9]} 27...
Nd7 {[%clk 0:01:17.1]} 28. Kg2 {[%clk 0:00:59]} 28... Nf8 {[%clk 0:01:15.9]} 29.
Rd3 {[%clk 0:00:53.2]} 29... Rd8 {[%clk 0:00:29.1]} 30. c4 {[%clk 0:00:49]}
30... Nd7 {[%clk 0:00:17.8]} 31. Rxd5 {[%clk 0:00:47.3]} 31... Qe7 {[%clk
0:00:18]} 32. Ng3 {[%clk 0:00:44.5]} 32... g5 {[%clk 0:00:18.4]} 33. Ne4 {[%clk
0:00:41.9]} 33... f6 {[%clk 0:00:16.7]} 34. c5 {[%clk 0:00:40.8]} 34... Kh7
{[%clk 0:00:14.2]} 35. c6 {[%clk 0:00:39.6]} 35... Qxe4 {[%clk 0:00:14.5]} 36.
fxe4 {[%clk 0:00:39.3]} 1-0

[Event "Early-Titled-Tuesday-Blitz-January-23-2024"]
[Site "Chess.com"]
[Date "2024.01.23"]
[Round "11"]
[White "RaugintaBulba"]
[Black "LaPiToB"]
[Result "0-1"]
[WhiteElo "2419"]
[BlackElo "2294"]
[TimeControl "180+1"]
[EndTime "10:07:03 PST"]
[Termination "LaPiToB won on time"]

1. g4 {[%clk 0:02:57.1]} 1... d5 {[%clk 0:02:57.6]} 2. Bg2 {[%clk 0:02:56.5]}
2... c5 {[%clk 0:02:56.7]} 3. g5 {[%clk 0:02:52.3]} 3... Nc6 {[%clk 0:02:53.3]}
4. c3 {[%clk 0:02:51.7]} 4... Bf5 {[%clk 0:02:52.2]} 5. d4 {[%clk 0:02:49.2]}
5... e6 {[%clk 0:02:50.8]} 6. Nf3 {[%clk 0:02:48.3]} 6... cxd4 {[%clk
0:02:46.4]} 7. cxd4 {[%clk 0:02:48.1]} 7... Bd6 {[%clk 0:02:42.7]} 8. Nc3 {[%clk
0:02:45.1]} 8... a6 {[%clk 0:02:39.6]} 9. a3 {[%clk 0:02:39.9]} 9... Nge7 {[%clk
0:02:37.7]} 10. h4 {[%clk 0:02:29.6]} 10... Ng6 {[%clk 0:02:24.9]} 11. e3 {[%clk
0:02:23]} 11... Rc8 {[%clk 0:02:10]} 12. h5 {[%clk 0:02:04]} 12... Nge7 {[%clk
0:02:06.4]} 13. h6 {[%clk 0:02:03.8]} 13... g6 {[%clk 0:02:04.9]} 14. Nh2 {[%clk
0:01:57]} 14... Bxh2 {[%clk 0:01:48.4]} 15. Rxh2 {[%clk 0:01:56.7]} 15... b5
{[%clk 0:01:42.5]} 16. f3 {[%clk 0:01:23.5]} 16... b4 {[%clk 0:01:23.4]} 17.
axb4 {[%clk 0:00:56.7]} 17... Nxb4 {[%clk 0:01:22.8]} 18. Qa4+ {[%clk
0:00:50.3]} 18... Nec6 {[%clk 0:01:22.1]} 19. Bf1 {[%clk 0:00:50.4]} 19... O-O
{[%clk 0:01:17.5]} 20. e4 {[%clk 0:00:35.6]} 20... dxe4 {[%clk 0:01:13.2]} 21.
fxe4 {[%clk 0:00:36.5]} 21... Bg4 {[%clk 0:01:01]} 22. d5 {[%clk 0:00:27.6]}
22... exd5 {[%clk 0:00:57.6]} 23. exd5 {[%clk 0:00:27.8]} 23... Re8+ {[%clk
0:00:49.7]} 24. Kf2 {[%clk 0:00:24.1]} 24... Qb6+ {[%clk 0:00:39.6]} 25. Kg3
{[%clk 0:00:17.1]} 25... Re3+ {[%clk 0:00:29.6]} 26. Kxg4 {[%clk 0:00:07.1]}
26... Qd4+ {[%clk 0:00:24.5]} 0-1

[Event "Early-Titled-Tuesday-Blitz-January-23-2024"]
[Site "Chess.com"]
[Date "2024.01.23"]
[Round "11"]
[White "stollenmonster"]
[Black "Druid24"]
[Result "1-0"]
[WhiteElo "2909"]
[BlackElo "2714"]
[TimeControl "180+1"]
[EndTime "10:07:05 PST"]
[Termination "stollenmonster won by resignation"]

1. e4 {[%clk 0:03:00.9]} 1... c6 {[%clk 0:02:57.1]} 2. d4 {[%clk 0:03:00.8]}
2... d5 {[%clk 0:02:58]} 3. e5 {[%clk 0:03:01.4]} 3... Bf5 {[%clk 0:02:57.2]} 4.
Ne2 {[%clk 0:03:02]} 4... e6 {[%clk 0:02:49.6]} 5. Ng3 {[%clk 0:03:02.5]} 5...
Bg6 {[%clk 0:02:49.1]} 6. h4 {[%clk 0:03:03]} 6... h6 {[%clk 0:02:48.7]} 7. h5
{[%clk 0:03:03.5]} 7... Bh7 {[%clk 0:02:49.1]} 8. Bd3 {[%clk 0:03:04.3]} 8...
Bxd3 {[%clk 0:02:48.9]} 9. cxd3 {[%clk 0:03:05.2]} 9... Qb6 {[%clk 0:02:42.8]}
10. Be3 {[%clk 0:03:04.8]} 10... Qxb2 {[%clk 0:02:38.9]} 11. Nd2 {[%clk
0:03:05.3]} 11... Qb6 {[%clk 0:02:35.8]} 12. O-O {[%clk 0:03:04.2]} 12... Ne7
{[%clk 0:02:30.3]} 13. Qg4 {[%clk 0:03:03.3]} 13... Nd7 {[%clk 0:02:26.5]} 14.
f4 {[%clk 0:02:51.7]} 14... g6 {[%clk 0:02:21]} 15. hxg6 {[%clk 0:02:50.5]}
15... fxg6 {[%clk 0:02:11.6]} 16. Rab1 {[%clk 0:02:41.3]} 16... Qa6 {[%clk
0:02:05.2]} 17. Qxe6 {[%clk 0:02:41.7]} 17... O-O-O {[%clk 0:01:48.8]} 18. Nb3
{[%clk 0:02:04.4]} 18... Qxd3 {[%clk 0:01:41.6]} 19. Bf2 {[%clk 0:02:01.9]}
19... Kb8 {[%clk 0:00:54.4]} 20. Rfc1 {[%clk 0:01:45.1]} 20... h5 {[%clk
0:00:42.3]} 21. Rd1 {[%clk 0:01:19.5]} 21... Qa6 {[%clk 0:00:34.8]} 22. Nf1
{[%clk 0:01:08.3]} 22... h4 {[%clk 0:00:25.5]} 23. Ne3 {[%clk 0:01:08.4]} 23...
Rh6 {[%clk 0:00:22.7]} 24. Ng4 {[%clk 0:01:02.9]} 24... Rh5 {[%clk 0:00:17.4]}
25. Qf7 {[%clk 0:00:52.7]} 25... Rf5 {[%clk 0:00:15.8]} 26. Nf6 {[%clk
0:00:48.4]} 26... Ka8 {[%clk 0:00:10.7]} 27. Qe6 {[%clk 0:00:44]} 27... Nxf6
{[%clk 0:00:09.5]} 28. exf6 {[%clk 0:00:44.4]} 28... Nc8 {[%clk 0:00:09.5]} 29.
f7 {[%clk 0:00:42.3]} 29... h3 {[%clk 0:00:06.4]} 30. Bh4 {[%clk 0:00:38.1]}
30... Qb6 {[%clk 0:00:03]} 31. Nc5 {[%clk 0:00:37.1]} 31... Qc7 {[%clk
0:00:02.8]} 32. Bxd8 {[%clk 0:00:35.9]} 32... Qxf4 {[%clk 0:00:03.4]} 33. Qxc8+
{[%clk 0:00:34.8]} 1-0

[Event "Early-Titled-Tuesday-Blitz-January-23-2024"]
[Site "Chess.com"]
[Date "2024.01.23"]
[Round "11"]
[White "Zhigalko_Sergei"]
[Black "Elsa167"]
[Result "0-1"]
[WhiteElo "2983"]
[BlackElo "2946"]
[TimeControl "180+1"]
[EndTime "10:07:07 PST"]
[Termination "Elsa167 won by checkmate"]

1. e4 {[%clk 0:02:56.9]} 1... e6 {[%clk 0:02:58.1]} 2. d4 {[%clk 0:02:57.1]}
2... d5 {[%clk 0:02:58.6]} 3. e5 {[%clk 0:02:57.9]} 3... c5 {[%clk 0:02:59.1]}
4. c3 {[%clk 0:02:58.6]} 4... Nc6 {[%clk 0:02:59.8]} 5. Nf3 {[%clk 0:02:59.2]}
5... Qb6 {[%clk 0:03:00.4]} 6. Bd3 {[%clk 0:02:59.3]} 6... cxd4 {[%clk
0:03:00.1]} 7. O-O {[%clk 0:02:59.7]} 7... Bd7 {[%clk 0:03:00.4]} 8. Re1 {[%clk
0:03:00.1]} 8... Nge7 {[%clk 0:03:00.1]} 9. h4 {[%clk 0:03:00.4]} 9... h6 {[%clk
0:02:59.6]} 10. h5 {[%clk 0:03:00.9]} 10... Rc8 {[%clk 0:02:59.1]} 11. a3 {[%clk
0:03:01.2]} 11... a6 {[%clk 0:02:54.2]} 12. b4 {[%clk 0:03:01.5]} 12... g5
{[%clk 0:02:46.2]} 13. hxg6 {[%clk 0:02:31.6]} 13... Nxg6 {[%clk 0:02:45.5]} 14.
Bxg6 {[%clk 0:02:03.3]} 14... fxg6 {[%clk 0:02:45.7]} 15. Qd3 {[%clk 0:02:04.1]}
15... Kf7 {[%clk 0:02:38.2]} 16. cxd4 {[%clk 0:01:57.5]} 16... Be7 {[%clk
0:02:18.2]} 17. Nc3 {[%clk 0:01:54.3]} 17... Kg7 {[%clk 0:02:14.8]} 18. Bd2
{[%clk 0:01:38.1]} 18... g5 {[%clk 0:02:05.1]} 19. Rac1 {[%clk 0:01:30.1]} 19...
Be8 {[%clk 0:02:03.5]} 20. Na4 {[%clk 0:01:20.7]} 20... Qd8 {[%clk 0:02:03.5]}
21. Nc5 {[%clk 0:01:09.5]} 21... Bxc5 {[%clk 0:02:03.8]} 22. bxc5 {[%clk
0:00:49.7]} 22... Rc7 {[%clk 0:01:49.9]} 23. Qe3 {[%clk 0:00:47.6]} 23... Bg6
{[%clk 0:01:49.5]} 24. Rc3 {[%clk 0:00:31.6]} 24... Rf7 {[%clk 0:01:46.5]} 25.
Rb3 {[%clk 0:00:29]} 25... Rhf8 {[%clk 0:01:45.5]} 26. Re2 {[%clk 0:00:28.4]}
26... Bh5 {[%clk 0:01:25.3]} 27. Qd3 {[%clk 0:00:21.1]} 27... Bxf3 {[%clk
0:01:20]} 28. gxf3 {[%clk 0:00:22]} 28... Qc8 {[%clk 0:00:55.7]} 29. Re3 {[%clk
0:00:20.3]} 29... Ne7 {[%clk 0:00:55.1]} 30. f4 {[%clk 0:00:20.4]} 30... Rxf4
{[%clk 0:00:50.4]} 31. Rg3 {[%clk 0:00:17.5]} 31... Rxf2 {[%clk 0:00:26.8]} 32.
Bxg5 {[%clk 0:00:17]} 32... Rf1+ {[%clk 0:00:26.9]} 33. Kg2 {[%clk 0:00:15.6]}
33... R8f2+ {[%clk 0:00:26.9]} 34. Kh3 {[%clk 0:00:13.4]} 34... Rh1+ {[%clk
0:00:27]} 35. Kg4 {[%clk 0:00:13.7]} 35... h5# {[%clk 0:00:27.6]} 0-1

[Event "Early-Titled-Tuesday-Blitz-January-23-2024"]
[Site "Chess.com"]
[Date "2024.01.23"]
[Round "11"]
[White "Chessbard1972"]
[Black "vladgoncharov"]
[Result "0-1"]
[WhiteElo "2464"]
[BlackElo "2646"]
[TimeControl "180+1"]
[EndTime "10:07:08 PST"]
[Termination "vladgoncharov won by checkmate"]

1. e4 {[%clk 0:03:00.9]} 1... e6 {[%clk 0:02:58]} 2. d4 {[%clk 0:03:00.3]} 2...
d5 {[%clk 0:02:54.4]} 3. e5 {[%clk 0:03:00.5]} 3... c5 {[%clk 0:02:54]} 4. dxc5
{[%clk 0:03:00.9]} 4... Nc6 {[%clk 0:02:51.6]} 5. Nf3 {[%clk 0:03:00.4]} 5...
Bxc5 {[%clk 0:02:46.2]} 6. Bd3 {[%clk 0:03:00.2]} 6... Nge7 {[%clk 0:02:43.5]}
7. O-O {[%clk 0:02:58]} 7... Qc7 {[%clk 0:02:41.9]} 8. Bf4 {[%clk 0:02:55.7]}
8... Ng6 {[%clk 0:02:38.6]} 9. Bg3 {[%clk 0:02:52.2]} 9... Nb4 {[%clk
0:02:19.1]} 10. Bb5+ {[%clk 0:02:39.7]} 10... Bd7 {[%clk 0:02:18.4]} 11. Bxd7+
{[%clk 0:02:34.4]} 11... Qxd7 {[%clk 0:02:18.2]} 12. c3 {[%clk 0:02:33.2]} 12...
Nc6 {[%clk 0:02:17.6]} 13. Nbd2 {[%clk 0:02:31.6]} 13... O-O {[%clk 0:02:15.8]}
14. h4 {[%clk 0:02:30.2]} 14... h6 {[%clk 0:02:06.5]} 15. h5 {[%clk 0:02:29]}
15... Nge7 {[%clk 0:02:06.5]} 16. Nb3 {[%clk 0:02:28.1]} 16... Bb6 {[%clk
0:02:04.7]} 17. Nbd4 {[%clk 0:02:28.1]} 17... Nxd4 {[%clk 0:02:02.1]} 18. Nxd4
{[%clk 0:02:22.3]} 18... Rfc8 {[%clk 0:01:58.7]} 19. f4 {[%clk 0:02:17.7]} 19...
Bxd4+ {[%clk 0:01:57.1]} 20. cxd4 {[%clk 0:02:13.5]} 20... Qb5 {[%clk
0:01:53.6]} 21. Qd2 {[%clk 0:02:07.3]} 21... Rc4 {[%clk 0:01:49.4]} 22. b3
{[%clk 0:02:04.6]} 22... Rc6 {[%clk 0:01:46.6]} 23. Rac1 {[%clk 0:01:59]} 23...
Rac8 {[%clk 0:01:45.8]} 24. Rxc6 {[%clk 0:01:58.5]} 24... Qxc6 {[%clk
0:01:45.9]} 25. Bf2 {[%clk 0:01:55.6]} 25... Qc2 {[%clk 0:01:45.5]} 26. Rd1
{[%clk 0:01:51.4]} 26... Qxd2 {[%clk 0:01:41.6]} 27. Rxd2 {[%clk 0:01:50.3]}
27... Rc1+ {[%clk 0:01:42.1]} 28. Kh2 {[%clk 0:01:48.6]} 28... Nc6 {[%clk
0:01:41.8]} 29. g4 {[%clk 0:01:41.9]} 29... f6 {[%clk 0:01:39.8]} 30. exf6
{[%clk 0:01:31.1]} 30... gxf6 {[%clk 0:01:39.5]} 31. Bh4 {[%clk 0:01:25.9]}
31... Kf7 {[%clk 0:01:38.9]} 32. g5 {[%clk 0:01:22.8]} 32... fxg5 {[%clk
0:01:31.6]} 33. fxg5 {[%clk 0:01:22.1]} 33... hxg5 {[%clk 0:01:32]} 34. Bxg5
{[%clk 0:01:22]} 34... Re1 {[%clk 0:01:28.4]} 35. Rf2+ {[%clk 0:01:21.2]} 35...
Kg8 {[%clk 0:01:28.2]} 36. Bf6 {[%clk 0:01:19.8]} 36... Kh7 {[%clk 0:01:23.6]}
37. Rg2 {[%clk 0:01:11.5]} 37... Kh6 {[%clk 0:01:23.6]} 38. Rg7 {[%clk
0:00:59.9]} 38... Rf1 {[%clk 0:01:20.5]} 39. Rf7 {[%clk 0:00:43.8]} 39... Kxh5
{[%clk 0:01:16.4]} 40. Kg3 {[%clk 0:00:37.8]} 40... Kg6 {[%clk 0:01:11.4]} 41.
Rf8 {[%clk 0:00:37.4]} 41... Rxf6 {[%clk 0:01:10.6]} 42. Rg8+ {[%clk 0:00:35.5]}
42... Kf5 {[%clk 0:01:09]} 43. Rg7 {[%clk 0:00:35]} 43... Nxd4 {[%clk
0:01:06.5]} 44. Rxb7 {[%clk 0:00:34.6]} 44... Ke4 {[%clk 0:01:06.5]} 45. Rxa7
{[%clk 0:00:33]} 45... Ne2+ {[%clk 0:01:06]} 46. Kg4 {[%clk 0:00:28.1]} 46...
Rg6+ {[%clk 0:01:00.2]} 47. Kh5 {[%clk 0:00:26.5]} 47... Nf4+ {[%clk 0:00:59.8]}
48. Kh4 {[%clk 0:00:25.6]} 48... Kf3 {[%clk 0:01:00.1]} 49. Rf7 {[%clk
0:00:10.2]} 49... Rg4# {[%clk 0:00:58.8]} 0-1

[Event "Early-Titled-Tuesday-Blitz-January-23-2024"]
[Site "Chess.com"]
[Date "2024.01.23"]
[Round "11"]
[White "Der_Balak_3Halak"]
[Black "Predo63"]
[Result "0-1"]
[WhiteElo "2340"]
[BlackElo "2474"]
[TimeControl "180+1"]
[EndTime "10:07:10 PST"]
[Termination "Predo63 won on time"]

1. e4 {[%clk 0:03:00.9]} 1... c6 {[%clk 0:02:59.8]} 2. Nf3 {[%clk 0:02:59.2]}
2... d5 {[%clk 0:03:00.7]} 3. Nc3 {[%clk 0:02:59.7]} 3... dxe4 {[%clk
0:03:00.9]} 4. Nxe4 {[%clk 0:03:00.6]} 4... Bg4 {[%clk 0:03:01.2]} 5. Bc4 {[%clk
0:02:59.1]} 5... e6 {[%clk 0:03:01.1]} 6. h3 {[%clk 0:02:54.4]} 6... Bxf3 {[%clk
0:03:00.7]} 7. Qxf3 {[%clk 0:02:55.3]} 7... Nd7 {[%clk 0:03:01]} 8. d4 {[%clk
0:02:55.1]} 8... Ngf6 {[%clk 0:03:00.4]} 9. c3 {[%clk 0:02:53.5]} 9... Nxe4
{[%clk 0:03:00.3]} 10. Qxe4 {[%clk 0:02:54.4]} 10... Nf6 {[%clk 0:03:00.6]} 11.
Qf3 {[%clk 0:02:51.8]} 11... Nd5 {[%clk 0:03:00.1]} 12. O-O {[%clk 0:02:50.7]}
12... Be7 {[%clk 0:02:59.9]} 13. Re1 {[%clk 0:02:43.6]} 13... O-O {[%clk
0:02:59.1]} 14. Bd3 {[%clk 0:02:39.5]} 14... g6 {[%clk 0:02:50.5]} 15. Bh6
{[%clk 0:02:23]} 15... Re8 {[%clk 0:02:50]} 16. Re2 {[%clk 0:02:14.6]} 16... Bg5
{[%clk 0:02:48.7]} 17. Bxg5 {[%clk 0:02:10.7]} 17... Qxg5 {[%clk 0:02:48.3]} 18.
Rae1 {[%clk 0:02:07.5]} 18... Qf4 {[%clk 0:02:33.2]} 19. Be4 {[%clk 0:01:55.8]}
19... Qxf3 {[%clk 0:02:33]} 20. Bxf3 {[%clk 0:01:54.6]} 20... Red8 {[%clk
0:02:33.4]} 21. Bxd5 {[%clk 0:01:50.8]} 21... cxd5 {[%clk 0:02:31.3]} 22. Re3
{[%clk 0:01:23.6]} 22... b5 {[%clk 0:02:31.2]} 23. Kf1 {[%clk 0:01:23.9]} 23...
a5 {[%clk 0:02:30.9]} 24. Ke2 {[%clk 0:01:24.5]} 24... b4 {[%clk 0:02:31]} 25.
Kd3 {[%clk 0:01:14.3]} 25... Rdc8 {[%clk 0:02:29.3]} 26. Kc2 {[%clk 0:01:13.7]}
26... Rc4 {[%clk 0:02:26.8]} 27. b3 {[%clk 0:01:10.7]} 27... Rc7 {[%clk
0:02:22.6]} 28. Kb2 {[%clk 0:01:08.2]} 28... Rb7 {[%clk 0:01:34]} 29. Rc1 {[%clk
0:01:03.8]} 29... a4 {[%clk 0:01:33.9]} 30. c4 {[%clk 0:00:49.8]} 30... dxc4
{[%clk 0:01:33.7]} 31. Rxc4 {[%clk 0:00:44.6]} 31... axb3 {[%clk 0:01:29.3]} 32.
Rxb3 {[%clk 0:00:43.6]} 32... Rba7 {[%clk 0:01:29.1]} 33. a3 {[%clk 0:00:17.5]}
33... Rxa3 {[%clk 0:01:23.5]} 34. Rxa3 {[%clk 0:00:16.6]} 34... bxa3+ {[%clk
0:01:23.7]} 35. Ka2 {[%clk 0:00:17.2]} 35... h5 {[%clk 0:01:22.1]} 36. Rc3
{[%clk 0:00:16.8]} 36... Ra4 {[%clk 0:01:22.2]} 37. Rd3 {[%clk 0:00:11.1]} 37...
Kg7 {[%clk 0:01:21.5]} 38. g3 {[%clk 0:00:08.5]} 38... Kf6 {[%clk 0:01:21.5]}
39. Rf3+ {[%clk 0:00:08.8]} 39... Ke7 {[%clk 0:01:21.6]} 40. Rxa3 {[%clk
0:00:07.7]} 40... Rxd4 {[%clk 0:01:20.3]} 41. Rb3 {[%clk 0:00:08]} 41... Rd2+
{[%clk 0:01:20.1]} 42. Rb2 {[%clk 0:00:08.4]} 42... Rxb2+ {[%clk 0:01:20.2]} 43.
Kxb2 {[%clk 0:00:09.3]} 43... Kd6 {[%clk 0:01:20.7]} 44. Kc3 {[%clk 0:00:10.2]}
44... Kd5 {[%clk 0:01:20.6]} 45. Kd3 {[%clk 0:00:10.2]} 45... e5 {[%clk
0:01:21.3]} 46. Ke3 {[%clk 0:00:10.4]} 46... f5 {[%clk 0:01:21.6]} 47. Kd3
{[%clk 0:00:10.7]} 47... g5 {[%clk 0:01:20.7]} 48. Ke3 {[%clk 0:00:09]} 48...
Kc4 {[%clk 0:01:12.2]} 49. f3 {[%clk 0:00:04]} 49... Kd5 {[%clk 0:01:07.4]} 0-1

[Event "Early-Titled-Tuesday-Blitz-January-23-2024"]
[Site "Chess.com"]
[Date "2024.01.23"]
[Round "11"]
[White "Smile2005"]
[Black "sterpfi"]
[Result "1-0"]
[WhiteElo "2402"]
[BlackElo "2244"]
[TimeControl "180+1"]
[EndTime "10:07:11 PST"]
[Termination "Smile2005 won by resignation"]

1. e4 {[%clk 0:03:00.9]} 1... c6 {[%clk 0:03:00.5]} 2. Nf3 {[%clk 0:02:59.7]}
2... d5 {[%clk 0:03:01.4]} 3. d3 {[%clk 0:03:00.5]} 3... dxe4 {[%clk 0:02:59.7]}
4. dxe4 {[%clk 0:03:01.4]} 4... Qxd1+ {[%clk 0:03:00.4]} 5. Kxd1 {[%clk
0:03:02.3]} 5... g6 {[%clk 0:02:56.2]} 6. Be3 {[%clk 0:03:01.2]} 6... Bg7 {[%clk
0:02:52.6]} 7. c3 {[%clk 0:03:00.8]} 7... Nf6 {[%clk 0:02:52.3]} 8. Nfd2 {[%clk
0:02:59.9]} 8... O-O {[%clk 0:02:51.9]} 9. f3 {[%clk 0:03:00.2]} 9... Rd8 {[%clk
0:02:51.4]} 10. a4 {[%clk 0:02:59.9]} 10... Be6 {[%clk 0:02:51.5]} 11. Kc2
{[%clk 0:02:57.6]} 11... Na6 {[%clk 0:02:51.4]} 12. Bc4 {[%clk 0:02:57.6]} 12...
Bxc4 {[%clk 0:02:50.9]} 13. Nxc4 {[%clk 0:02:57.8]} 13... Nd7 {[%clk 0:02:51.4]}
14. Nbd2 {[%clk 0:02:56.3]} 14... Ndc5 {[%clk 0:02:51.5]} 15. b4 {[%clk
0:02:52.9]} 15... Ne6 {[%clk 0:02:46.5]} 16. Rhb1 {[%clk 0:02:46.7]} 16... Nac7
{[%clk 0:02:29.7]} 17. b5 {[%clk 0:02:33.4]} 17... cxb5 {[%clk 0:02:16.4]} 18.
axb5 {[%clk 0:02:34.3]} 18... a6 {[%clk 0:02:16.6]} 19. bxa6 {[%clk 0:02:28.7]}
19... bxa6 {[%clk 0:02:16.1]} 20. Nb6 {[%clk 0:02:18.8]} 20... Rab8 {[%clk
0:02:15.8]} 21. Nd5 {[%clk 0:02:14]} 21... Nxd5 {[%clk 0:02:07.4]} 22. exd5
{[%clk 0:02:12.3]} 22... Rxb1 {[%clk 0:02:07.2]} 23. Nxb1 {[%clk 0:02:08]} 23...
Nc7 {[%clk 0:01:58.8]} 24. Bb6 {[%clk 0:02:01.7]} 24... Be5 {[%clk 0:01:45.1]}
25. Rxa6 {[%clk 0:01:49.2]} 25... Rxd5 {[%clk 0:01:39]} 26. Ra7 {[%clk
0:01:37.7]} 26... Ne6 {[%clk 0:01:21.2]} 27. g3 {[%clk 0:01:30.4]} 27... Bd6
{[%clk 0:01:13.7]} 28. Nd2 {[%clk 0:01:24.7]} 28... f5 {[%clk 0:01:07.7]} 29. f4
{[%clk 0:01:12]} 29... Kf7 {[%clk 0:01:02.3]} 30. c4 {[%clk 0:01:11.2]} 30...
Nd4+ {[%clk 0:00:50.1]} 31. Kd1 {[%clk 0:01:03.2]} 31... Bc5 {[%clk 0:00:39.7]}
32. cxd5 {[%clk 0:00:57.6]} 32... Bxb6 {[%clk 0:00:39.6]} 33. Rb7 {[%clk
0:00:56.5]} 33... Bc5 {[%clk 0:00:36.6]} 34. Nc4 {[%clk 0:00:54.8]} 34... Nf3
{[%clk 0:00:33.5]} 35. Ne5+ {[%clk 0:00:53.5]} 35... Nxe5 {[%clk 0:00:33.7]} 36.
fxe5 {[%clk 0:00:54.4]} 36... Ke8 {[%clk 0:00:22]} 37. Ke2 {[%clk 0:00:53.8]}
37... Bd4 {[%clk 0:00:19]} 38. d6 {[%clk 0:00:49.3]} 38... exd6 {[%clk
0:00:18.5]} 39. exd6 {[%clk 0:00:46.8]} 39... Be5 {[%clk 0:00:18.7]} 40. Re7+
{[%clk 0:00:45.2]} 1-0

[Event "Early-Titled-Tuesday-Blitz-January-23-2024"]
[Site "Chess.com"]
[Date "2024.01.23"]
[Round "11"]
[White "mishanick"]
[Black "K_A_S_T_O_R"]
[Result "1-0"]
[WhiteElo "3060"]
[BlackElo "2888"]
[TimeControl "180+1"]
[EndTime "10:07:12 PST"]
[Termination "mishanick won by resignation"]

1. d4 {[%clk 0:03:00.3]} 1... Nf6 {[%clk 0:02:55.2]} 2. c4 {[%clk 0:03:01]} 2...
e6 {[%clk 0:02:55.6]} 3. Nc3 {[%clk 0:03:01.5]} 3... Bb4 {[%clk 0:02:55.3]} 4.
e3 {[%clk 0:03:00.9]} 4... O-O {[%clk 0:02:54.5]} 5. Bd3 {[%clk 0:03:01.2]} 5...
c5 {[%clk 0:02:53.9]} 6. Nf3 {[%clk 0:02:59.9]} 6... d5 {[%clk 0:02:53.2]} 7.
O-O {[%clk 0:02:59.5]} 7... cxd4 {[%clk 0:02:53.3]} 8. exd4 {[%clk 0:02:59.7]}
8... dxc4 {[%clk 0:02:53.8]} 9. Bxc4 {[%clk 0:03:00.6]} 9... b6 {[%clk
0:02:54.4]} 10. Qe2 {[%clk 0:03:01.3]} 10... Bb7 {[%clk 0:02:51.5]} 11. Rd1
{[%clk 0:03:02]} 11... Bxc3 {[%clk 0:02:48.8]} 12. bxc3 {[%clk 0:03:01.7]} 12...
Qc7 {[%clk 0:02:48.1]} 13. Bd3 {[%clk 0:02:51.2]} 13... Nbd7 {[%clk 0:02:43.3]}
14. c4 {[%clk 0:02:48.2]} 14... Rac8 {[%clk 0:02:31.9]} 15. Bb2 {[%clk
0:02:48.8]} 15... Rfe8 {[%clk 0:02:13.4]} 16. Rac1 {[%clk 0:02:47.8]} 16... Qf4
{[%clk 0:02:07.3]} 17. Nd2 {[%clk 0:02:39.8]} 17... e5 {[%clk 0:01:51]} 18. d5
{[%clk 0:02:28.3]} 18... e4 {[%clk 0:01:43.1]} 19. Bb1 {[%clk 0:02:28.4]} 19...
e3 {[%clk 0:01:40.4]} 20. Nf1 {[%clk 0:02:09.3]} 20... exf2+ {[%clk 0:01:16.1]}
21. Qxf2 {[%clk 0:02:10.2]} 21... Qxf2+ {[%clk 0:01:05.1]} 22. Kxf2 {[%clk
0:02:11.1]} 22... Ne4+ {[%clk 0:01:05.7]} 23. Kg1 {[%clk 0:02:08.8]} 23... Nd6
{[%clk 0:01:05.1]} 24. Nd2 {[%clk 0:02:04.3]} 24... Nc5 {[%clk 0:01:03.3]} 25.
Re1 {[%clk 0:01:57.3]} 25... Ba6 {[%clk 0:01:00.7]} 26. Be5 {[%clk 0:01:40.2]}
26... Ncb7 {[%clk 0:01:00.7]} 27. Bd3 {[%clk 0:01:32.4]} 27... f6 {[%clk
0:01:00.5]} 28. Bg3 {[%clk 0:01:30.7]} 28... Kf7 {[%clk 0:00:53.9]} 29. Rxe8
{[%clk 0:01:24.6]} 29... Rxe8 {[%clk 0:00:50.5]} 30. c5 {[%clk 0:01:19.8]} 30...
Bxd3 {[%clk 0:00:48.5]} 31. cxd6 {[%clk 0:01:20.3]} 31... Nc5 {[%clk 0:00:48.9]}
32. Nb3 {[%clk 0:01:17.5]} 32... Rc8 {[%clk 0:00:39.9]} 33. Nd4 {[%clk
0:00:48.5]} 33... Ba6 {[%clk 0:00:27.1]} 34. Nc6 {[%clk 0:00:35.9]} 34... Bb7
{[%clk 0:00:16.9]} 35. Rxc5 {[%clk 0:00:30.7]} 35... bxc5 {[%clk 0:00:14.5]} 36.
d7 {[%clk 0:00:31.3]} 1-0